fUSD/lending_fUSD_20241121
["ID","MTS","AMOUNT","RATE_DAILY","PERIOD"]
[342948521,1732217447039,-500.0,0.00039451,11]
[342948522,1732217447048,-500.0,0.00039451,11]
[342948523,1732217447057,-500.0,0.00039451,11]
[342948524,1732217447066,-500.0,0.00039451,11]
[342948525,1732217447076,-500.0,0.00039451,11]
[342948526,1732217447085,-500.0,0.00039451,11]
[342948527,1732217447094,-500.0,0.00039451,11]
[342948528,1732217447104,-574.09,0.00039451,11]
[342948529,1732217447114,-500.0,0.00039451,11]
[342948530,1732217447123,-537.39,0.00039451,11]
[342948531,1732217447135,-338.57280833,0.00039451,11]
[342948532,1732217447144,-211.7,0.00039451,11]
[342948533,1732217447154,-500.0,0.00039451,11]
[342948534,1732217447164,-1774.58,0.00039451,10]
[342948535,1732217447173,-500.0,0.00039451,11]
[342948536,1732217447183,-500.0,0.00039451,11]
[342948537,1732217447192,-500.0,0.00039451,11]
[342948538,1732217447202,-500.0,0.00039451,11]
[342948539,1732217447211,-500.0,0.00039451,11]
[342948540,1732217447221,-273.75529231,0.00039451,11]
[342948541,1732217447231,-500.0,0.00039451,11]
[342948542,1732217447240,-450.18,0.00039451,11]
[342948543,1732217447250,-500.0,0.00039451,11]
[342948544,1732217447259,-500.0,0.00039451,11]
[342948545,1732217447268,-581.57,0.00039451,11]
[342948546,1732217447282,-500.0,0.00039451,11]
[342948547,1732217447292,-500.0,0.00039451,11]
[342948548,1732217447301,-504.72,0.00039451,11]
[342948549,1732217447310,-350.93664207,0.00039451,11]
[342948550,1732217447322,-500.0,0.00039451,11]
[342948551,1732217447330,-500.0,0.00039451,11]
[342948552,1732217447494,-500.0,0.00039451,11]
[342948553,1732217447505,-500.0,0.00039451,11]
[342948554,1732217447515,-500.0,0.00039451,11]
[342948555,1732217447524,-500.0,0.00039451,11]
[342948556,1732217447533,-500.0,0.00039451,11]
[342948557,1732217447543,-518.39,0.00039451,11]
[342948558,1732217447552,-515.32,0.00039451,11]
[342948559,1732217447562,-500.0,0.00039451,11]
[342948560,1732217447571,-500.0,0.00039451,11]
[342948561,1732217447581,-2438.63,0.00039451,11]
[342948562,1732217447590,-500.0,0.00039451,11]
[342948563,1732217447600,-695.85,0.00039451,11]
[342948564,1732217447610,-649.6,0.00039451,11]
[342948565,1732217447619,-500.0,0.00039451,11]
[342948566,1732217447628,-500.0,0.00039451,11]
[342948567,1732217447640,-500.0,0.00039451,11]
[342948568,1732217447649,-500.0,0.00039451,11]
[342948569,1732217447659,-500.0,0.00039451,11]
[342948570,1732217447668,-500.0,0.00039451,11]
[342948571,1732217447678,-500.0,0.00039451,7]
[342948572,1732217447687,-516.33,0.00039451,11]
[342948573,1732217447697,-500.0,0.00039451,11]
[342948574,1732217447706,-500.0,0.00039451,11]
[342948575,1732217447715,-1143.93,0.00039451,10]
[342948576,1732217447725,-500.0,0.00039451,11]
[342948577,1732217447735,-500.0,0.00039451,11]
[342948578,1732217447745,-500.0,0.00039451,11]
[342948579,1732217447755,-500.0,0.00039451,11]
[342948580,1732217447770,-500.0,0.00039451,11]
[342948581,1732217447780,-500.0,0.00039451,11]
[342948582,1732217447790,-500.0,0.00039451,11]
[342948583,1732217447801,-500.0,0.00039451,11]
[342948584,1732217447811,-500.0,0.00039451,11]
[342948585,1732217447820,-597.79,0.00039451,11]
[342948586,1732217447830,-253.79237,0.00039452,14]
[342948587,1732217447840,-390.811008,0.00039452,14]
[342948588,1732217447850,-390.811008,0.00039452,14]
[342948589,1732217447861,-330.6625,0.00039452,14]
[342948590,1732217447871,-330.6625,0.00039452,14]
[342948591,1732217447880,-465.0803,0.00039452,14]
[342948592,1732217447893,-163.484492,0.00039452,14]
[342948593,1732217447903,-465.0803,0.00039452,14]
[342948594,1732217447912,-919.83258,0.00039452,14]
[342948595,1732217447921,-919.83258,0.00039452,14]
[342948596,1732217447931,-526.559534,0.00039452,14]
[342948597,1732217447940,-205.058868,0.00039452,14]
[342948598,1732217447949,-205.058868,0.00039452,14]
[342948599,1732217447959,-192.18045,0.00039452,14]
[342948600,1732217447968,-192.18045,0.00039452,14]
[342948601,1732217447978,-2000.0,0.00039452,15]
[342948602,1732217447987,-500.0,0.00039452,11]
[342948603,1732217447997,-500.0,0.00039452,11]
[342948604,1732217448006,-500.0,0.00039452,11]
[342948605,1732217448016,-766.72,0.00039452,11]
[342948606,1732217448026,-500.0,0.00039452,11]
[342948607,1732217448036,-500.0,0.00039452,11]
[342948608,1732217448046,-500.0,0.00039452,11]
[342948609,1732217448056,-500.0,0.00039452,11]
[342948610,1732217448065,-500.0,0.00039452,11]
[342948611,1732217448075,-500.0,0.00039452,11]
[342948612,1732217448085,-500.0,0.00039452,11]
[342948613,1732217448095,-500.0,0.00039452,11]
[342948614,1732217448104,-500.0,0.00039452,11]
[342948615,1732217448113,-628.38,0.00039452,11]
[342948616,1732217448123,-504.63,0.00039452,11]
[342948617,1732217448135,-500.0,0.00039452,11]
[342948618,1732217448144,-500.0,0.00039452,11]
[342948619,1732217448154,-500.0,0.00039452,11]
[342948620,1732217448164,-500.0,0.00039452,11]
[342948621,1732217448173,-1061.2,0.00039452,11]
[342948622,1732217448182,-678.05,0.00039452,11]
[342948623,1732217448192,-323.96515097,0.00039452,11]
[342948624,1732217448201,-500.0,0.00039452,11]
[342948625,1732217448211,-1019.62,0.00039452,11]
[342948626,1732217448221,-500.0,0.00039452,11]
[342948627,1732217448231,-748.44,0.00039452,11]
[342948628,1732217448240,-500.0,0.00039452,11]
[342948629,1732217448250,-502.27,0.00039452,11]
[342948630,1732217448259,-505.55,0.00039452,11]
[342948631,1732217448268,-500.0,0.00039452,11]
[342948632,1732217448277,-1116.54,0.00039452,11]
[342948633,1732217448287,-500.0,0.00039452,11]
[342948634,1732217448296,-500.0,0.00039452,11]
[342948635,1732217448305,-500.0,0.00039452,11]
[342948636,1732217448315,-639.79,0.00039452,11]
[342948637,1732217448324,-500.0,0.00039452,11]
[342948638,1732217448334,-500.0,0.00039452,11]
[342948639,1732217448344,-777.56,0.00039452,11]
[342948640,1732217448353,-6107.76,0.00039452,11]
[342948641,1732217448363,-500.0,0.00039452,11]
[342948642,1732217448372,-573.95937085,0.00039452,11]
[342948643,1732217448384,-1212.16,0.00039452,11]
[342948644,1732217448395,-500.0,0.00039452,11]
[342948645,1732217448405,-500.0,0.00039452,11]
[342948646,1732217448414,-1159.98,0.00039476,2]
[342948647,1732217448423,-22593.7351,0.00039476,2]
[342948648,1732217448433,-1000.0,0.000395,30]
[342948649,1732217448443,-4000.0,0.000395,4]
[342948650,1732217448453,-150.0,0.00039532,2]
[342948651,1732217448462,-150.0,0.00039556,2]
[342948652,1732217448472,-150.0,0.00039569,2]
[342948653,1732217448481,-200.0,0.00039584,2]
[342948654,1732217448490,-541.93,0.00039624,11]
[342948655,1732217448500,-500.0,0.00039624,11]
[342948656,1732217448513,-500.0,0.00039624,11]
[342948657,1732217448522,-500.0,0.00039624,11]
[342948658,1732217448533,-500.0,0.00039624,11]
[342948659,1732217448542,-500.0,0.00039624,11]
[342948660,1732217448552,-500.0,0.00039624,11]
[342948661,1732217448561,-500.0,0.00039624,11]
[342948662,1732217448571,-500.0,0.00039624,11]
[342948663,1732217448580,-500.0,0.00039624,11]
[342948664,1732217448590,-685.18,0.00039624,11]
[342948665,1732217448599,-500.0,0.00039624,11]
[342948666,1732217448608,-561.80105885,0.00039624,11]
[342948667,1732217448617,-500.0,0.00039624,11]
[342948668,1732217448626,-500.0,0.00039624,11]
[342948669,1732217448641,-3088.05,0.00039624,11]
[342948670,1732217448653,-620.25,0.00039624,11]
[342948671,1732217448662,-500.0,0.00039624,11]
[342948672,1732217448671,-628.0,0.00039624,11]
[342948673,1732217448681,-500.0,0.00039624,11]
[342948674,1732217448689,-2000.0,0.00039624,120]
[342948675,1732217448699,-1081.59,0.00039624,11]
[342948676,1732217448708,-500.0,0.00039624,7]
[342948677,1732217448717,-500.0,0.00039624,11]
[342948678,1732217448727,-500.0,0.00039624,11]
[342948679,1732217448738,-500.0,0.00039624,11]
[342948680,1732217448748,-500.0,0.00039624,11]
[342948681,1732217448758,-500.0,0.00039624,11]
[342948682,1732217448772,-500.0,0.00039624,11]
[342948683,1732217448782,-500.0,0.00039624,11]
[342948684,1732217448792,-548.38,0.00039624,11]
[342948685,1732217448802,-5924.49,0.00039624,2]
[342948686,1732217448813,-741.81,0.00039624,11]
[342948687,1732217448823,-608.57,0.00039624,11]
[342948688,1732217448833,-1091.24,0.00039624,11]
[342948689,1732217448844,-336.26,0.0003963,2]
[342948690,1732217448854,-955.80869,0.0003967,35]
[342948691,1732217448863,-150.0,0.00039671,2]
[342948692,1732217448873,-152.32,0.00039671,2]
[342948693,1732217448882,-160.27137806,0.00039682,2]
[342948694,1732217448893,-150.0,0.00039689,2]
[342948695,1732217448902,-604.01,0.00039698,2]
[342948696,1732217448912,-150.0,0.00039703,2]
[342948697,1732217448921,-392.99,0.00039725,11]
[342948698,1732217448931,-500.0,0.00039725,11]
[342948699,1732217448941,-500.0,0.00039725,11]
[342948700,1732217448951,-500.0,0.00039725,11]
[342948701,1732217448961,-500.0,0.00039725,11]
[342948702,1732217448970,-500.0,0.00039725,11]
[342948703,1732217448980,-500.0,0.00039725,11]
[342948704,1732217448989,-500.0,0.00039725,11]
[342948705,1732217448999,-500.0,0.00039725,11]
[342948706,1732217449008,-500.0,0.00039725,11]
[342948707,1732217449017,-500.0,0.00039725,11]
[342948708,1732217449026,-500.0,0.00039725,11]
[342948709,1732217449035,-500.0,0.00039725,11]
[342948710,1732217449044,-416.14,0.00039725,11]
[342948711,1732217449058,-155.44,0.00039725,11]
[342948712,1732217449073,-1774.58,0.00039725,10]
[342948713,1732217449088,-164.48,0.00039725,11]
[342948714,1732217449100,-500.0,0.00039725,11]
[342948715,1732217449113,-500.0,0.00039725,11]
[342948716,1732217449127,-500.0,0.00039725,11]
[342948717,1732217449141,-500.0,0.00039725,11]
[342948718,1732217449155,-500.0,0.00039725,11]
[342948719,1732217449168,-500.0,0.00039725,11]
[342948720,1732217449182,-355.11836906,0.00039725,11]
[342948721,1732217449195,-518.39,0.00039725,11]
[342948722,1732217449206,-500.0,0.00039725,11]
[342948723,1732217449218,-500.0,0.00039725,11]
[342948724,1732217449232,-2438.63,0.00039725,11]
[342948725,1732217449247,-500.0,0.00039725,11]
[342948726,1732217449260,-695.85,0.00039725,11]
[342948727,1732217449274,-500.0,0.00039725,11]
[342948728,1732217449288,-500.0,0.00039725,11]
[342948729,1732217449301,-267.28741179,0.00039725,11]
[342948730,1732217449314,-500.0,0.00039725,11]
[342948731,1732217449328,-500.0,0.00039725,11]
[342948732,1732217449341,-1143.93,0.00039725,10]
[342948733,1732217449354,-500.0,0.00039725,11]
[342948734,1732217449368,-613.2,0.00039725,11]
[342948735,1732217449380,-500.0,0.00039725,11]
[342948736,1732217449395,-2000.0,0.00039726,15]
[342948737,1732217449409,-500.0,0.00039726,11]
[342948738,1732217449422,-500.0,0.00039726,11]
[342948739,1732217449433,-500.0,0.00039726,11]
[342948740,1732217449444,-766.72,0.00039726,11]
[342948741,1732217449458,-500.0,0.00039726,11]
[342948742,1732217449472,-500.0,0.00039726,11]
[342948743,1732217449487,-500.0,0.00039726,11]
[342948744,1732217449498,-500.0,0.00039726,11]
[342948745,1732217449508,-500.0,0.00039726,11]
[342948746,1732217449520,-500.0,0.00039726,11]
[342948747,1732217449534,-500.0,0.00039726,11]
[342948748,1732217449546,-180.74514197,0.00039726,11]
[342948749,1732217449558,-500.0,0.00039726,11]
[342948750,1732217449569,-500.0,0.00039726,11]
[342948751,1732217449582,-214.54,0.00039726,11]
[342948752,1732217449594,-500.0,0.00039726,11]
[342948753,1732217449605,-500.0,0.00039726,11]
[342948754,1732217449617,-1061.2,0.00039726,11]
[342948755,1732217449629,-678.05,0.00039726,11]
[342948756,1732217449642,-594.27,0.00039726,11]
[342948757,1732217449654,-1019.62,0.00039726,11]
[342948758,1732217449667,-500.0,0.00039726,11]
[342948759,1732217449678,-748.44,0.00039726,11]
[342948760,1732217449691,-500.0,0.00039726,11]
[342948761,1732217449703,-502.27,0.00039726,11]
[342948762,1732217449715,-505.55,0.00039726,11]
[342948763,1732217449726,-500.0,0.00039726,11]
[342948764,1732217449737,-1116.54,0.00039726,11]
[342948765,1732217449749,-500.0,0.00039726,11]
[342948766,1732217449763,-500.0,0.00039726,11]
[342948767,1732217449775,-500.0,0.00039726,11]
[342948768,1732217449787,-639.79,0.00039726,11]
[342948769,1732217449800,-500.0,0.00039726,11]
[342948770,1732217449812,-500.0,0.00039726,11]
[342948771,1732217449824,-777.56,0.00039726,11]
[342948772,1732217449836,-6107.76,0.00039726,11]
[342948773,1732217449850,-583.47037042,0.00039726,11]
[342948774,1732217449862,-1212.16,0.00039726,11]
[342948775,1732217449874,-500.0,0.00039726,11]
[342948776,1732217449886,-500.0,0.00039726,11]
[342948777,1732217449899,-150.0,0.00039756,2]
[342948778,1732217449911,-823.48152685,0.000398,120]
[342948779,1732217449923,-150.0,0.00039803,2]
[342948780,1732217449934,-150.0,0.00039803,2]
[342948781,1732217449946,-150.0,0.00039821,2]
[342948782,1732217449959,-1000.0,0.00039871,60]
[342948783,1732217449971,-257.01,0.00039898,11]
[342948784,1732217449983,-500.0,0.00039898,11]
[342948785,1732217449995,-500.0,0.00039898,11]
[342948786,1732217450009,-500.0,0.00039898,11]
[342948787,1732217450020,-500.0,0.00039898,11]
[342948788,1732217450031,-500.0,0.00039898,11]
[342948789,1732217450043,-500.0,0.00039898,11]
[342948790,1732217450054,-500.0,0.00039898,11]
[342948791,1732217450066,-421.3645629,0.00039898,11]
[342948792,1732217450078,-685.18,0.00039898,11]
[342948793,1732217450090,-500.0,0.00039898,11]
[342948794,1732217450103,-500.0,0.00039898,11]
[342948795,1732217450115,-500.0,0.00039898,11]
[342948796,1732217450127,-3088.05,0.00039898,11]
[342948797,1732217450139,-620.25,0.00039898,11]
[342948798,1732217450155,-500.0,0.00039898,11]
[342948799,1732217450167,-500.0,0.00039898,11]
[342948800,1732217450178,-2000.0,0.00039898,120]
[342948801,1732217450190,-1081.59,0.00039898,11]
[342948802,1732217450201,-603.72,0.00039898,7]
[342948803,1732217450213,-500.0,0.00039898,11]
[342948804,1732217450224,-500.0,0.00039898,11]
[342948805,1732217450236,-500.0,0.00039898,11]
[342948806,1732217450247,-500.0,0.00039898,11]
[342948807,1732217450259,-500.0,0.00039898,11]
[342948808,1732217450270,-500.0,0.00039898,11]
[342948809,1732217450282,-500.0,0.00039898,11]
[342948810,1732217450294,-548.38,0.00039898,11]
[342948811,1732217450305,-5924.49,0.00039898,2]
[342948812,1732217450316,-741.81,0.00039898,11]
[342948813,1732217450327,-608.57,0.00039898,11]
[342948814,1732217450338,-1091.24,0.00039898,11]
[342948815,1732217450349,-196569.39807763,0.000399,21]
[342948816,1732217450360,-2000.0,0.000399,14]
[342948817,1732217450372,-151.0,0.000399,14]
[342948818,1732217450384,-417.95,0.000399,7]
[342948819,1732217450400,-151.0,0.000399,14]
[342948820,1732217450412,-417.95,0.000399,7]
[342948821,1732217450423,-151.0,0.000399,14]
[342948822,1732217450435,-151.0,0.000399,14]
[342948823,1732217450446,-151.0,0.000399,14]
[342948824,1732217450458,-1500.0,0.00039922,5]
[342948825,1732217450470,-1500.0,0.00039922,5]
[342948826,1732217450481,-1626.13713323,0.00039938,120]
[342948827,1732217450493,-172.7,0.00039999,11]
[342948828,1732217450505,-500.0,0.00039999,11]
[342948829,1732217450516,-500.0,0.00039999,11]
[342948830,1732217450528,-500.0,0.00039999,11]
[342948831,1732217450539,-322.5,0.00039999,11]
[342948832,1732217450551,-150.0,0.00039999,2]
[342948833,1732217450563,-273.65983434,0.00039999,11]
[342948834,1732217450574,-500.0,0.00039999,31]
[342948835,1732217450585,-212.49125904,0.00039999,31]
[342948836,1732217450596,-301.28860924,0.00039999,31]
[342948837,1732217450608,-500.0,0.00039999,11]
[342948838,1732217450619,-500.0,0.00039999,11]
[342948839,1732217450630,-1774.58,0.00039999,10]
[342948840,1732217450645,-487.56,0.00039999,11]
[342948841,1732217450657,-500.0,0.00039999,11]
[342948842,1732217450669,-500.0,0.00039999,11]
[342948843,1732217450681,-500.0,0.00039999,11]
[342948844,1732217450692,-500.0,0.00039999,11]
[342948845,1732217450704,-500.0,0.00039999,11]
[342948846,1732217450715,-518.39,0.00039999,11]
[342948847,1732217450727,-336.79545922,0.00039999,11]
[342948848,1732217450738,-2438.63,0.00039999,11]
[342948849,1732217450750,-695.85,0.00039999,11]
[342948850,1732217450763,-500.0,0.00039999,11]
[342948851,1732217450776,-500.0,0.00039999,11]
[342948852,1732217450788,-500.0,0.00039999,11]
[342948853,1732217450800,-500.0,0.00039999,11]
[342948854,1732217450814,-1143.93,0.00039999,10]
[342948855,1732217450827,-354.01,0.00039999,11]
[342948856,1732217450839,-169.60511449,0.00039999,11]
[342948857,1732217450851,-165.2744417,0.0004,4]
[342948858,1732217450864,-330.6625,0.0004,14]
[342948859,1732217450876,-1000.0,0.0004,30]
[342948860,1732217450891,-330.6625,0.0004,14]
[342948861,1732217450900,-526.559534,0.0004,14]
[342948862,1732217450910,-2000.0,0.0004,15]
[342948863,1732217450919,-500.0,0.0004,11]
[342948864,1732217450929,-500.0,0.0004,11]
[342948865,1732217450939,-500.0,0.0004,11]
[342948866,1732217451202,-766.72,0.0004,11]
[342948867,1732217451220,-500.0,0.0004,11]
[342948868,1732217451229,-500.0,0.0004,11]
[342948869,1732217451239,-500.0,0.0004,11]
[342948870,1732217451248,-500.0,0.0004,11]
[342948871,1732217451257,-500.0,0.0004,11]
[342948872,1732217451266,-500.0,0.0004,11]
[342948873,1732217451275,-612.7663631,0.0004,11]
[342948874,1732217451284,-500.0,0.0004,11]
[342948875,1732217451293,-500.0,0.0004,11]
[342948876,1732217451302,-500.0,0.0004,11]
[342948877,1732217451311,-955.80869,0.0004,36]
[342948878,1732217451321,-1061.2,0.0004,11]
[342948879,1732217451331,-678.05,0.0004,11]
[342948880,1732217451340,-9840.84255098,0.0004,20]
[342948881,1732217451349,-1019.62,0.0004,11]
[342948882,1732217451358,-500.0,0.0004,11]
[342948883,1732217451367,-2731.01,0.0004,120]
[342948884,1732217451377,-748.44,0.0004,11]
[342948885,1732217451388,-300.0,0.0004,2]
[342948886,1732217451397,-1000.0,0.0004,20]
[342948887,1732217451407,-500.0,0.0004,11]
[342948888,1732217451415,-502.27,0.0004,11]
[342948889,1732217451425,-374.35740469,0.0004,2]
[342948890,1732217451434,-505.55,0.0004,11]
[342948891,1732217451443,-1299.61776886,0.0004,5]
[342948892,1732217451452,-500.0,0.0004,11]
[342948893,1732217451461,-1116.54,0.0004,11]
[342948894,1732217451470,-919.04386306,0.0004,2]
[342948895,1732217451479,-385.44,0.0004,11]
[342948896,1732217451488,-500.0,0.0004,11]
[342948897,1732217451497,-500.0,0.0004,11]
[342948898,1732217451507,-639.79,0.0004,11]
[342948899,1732217451516,-500.0,0.0004,11]
[342948900,1732217451526,-500.0,0.0004,11]
[342948901,1732217451536,-777.56,0.0004,11]
[342948902,1732217451545,-6107.76,0.0004,11]
[342948903,1732217451555,-1212.16,0.0004,11]
[342948904,1732217451563,-500.0,0.0004,11]
[342948905,1732217451572,-500.0,0.0004,11]
[342948906,1732217451582,-150.0,0.00040002,2]
[342948907,1732217451593,-175.05,0.00040008,2]
[342948908,1732217451604,-150.0,0.00040012,2]
[342948909,1732217451614,-150.0,0.00040014,2]
[342948910,1732217451623,-150.0,0.00040014,2]
[342948911,1732217451633,-150.0,0.00040014,2]
[342948912,1732217451647,-150.0,0.00040015,2]
[342948913,1732217451656,-150.0,0.00040018,2]
[342948914,1732217451666,-150.0,0.00040022,2]
[342948915,1732217451675,-150.0,0.00040024,2]
[342948916,1732217451684,-150.0,0.00040025,2]
[342948917,1732217451692,-150.0,0.00040026,2]
[342948918,1732217451702,-150.0,0.00040037,2]
[342948919,1732217451720,-150.0,0.00040045,2]
[342948920,1732217451731,-150.0,0.00040048,2]
[342948921,1732217451741,-150.0,0.00040048,2]
[342948922,1732217451751,-150.0,0.00040048,2]
[342948923,1732217451762,-150.0,0.0004005,2]
[342948924,1732217451774,-150.0,0.00040059,2]
[342948925,1732217451784,-150.0,0.0004006,2]
[342948926,1732217451794,-150.0,0.00040061,2]
[342948927,1732217451804,-150.0,0.00040063,2]
[342948928,1732217451814,-159.53172486,0.00040063,2]
[342948929,1732217451824,-150.0,0.00040064,2]
[342948930,1732217451834,-150.0,0.00040065,2]
[342948931,1732217451845,-465.0803,0.00040072,14]
[342948932,1732217451854,-465.0803,0.00040072,14]
[342948933,1732217451864,-919.83258,0.00040072,14]
[342948934,1732217451874,-919.83258,0.00040072,14]
[342948935,1732217451884,-205.058868,0.00040072,14]
[342948936,1732217451897,-205.058868,0.00040072,14]
[342948937,1732217451907,-150.0,0.00040072,2]
[342948938,1732217451916,-150.0,0.00040076,2]
[342948939,1732217451927,-150.0,0.00040078,2]
[342948940,1732217451936,-390.811008,0.0004009,14]
[342948941,1732217451947,-390.811008,0.0004009,14]
[342948942,1732217451956,-192.18045,0.0004009,14]
[342948943,1732217451966,-192.18045,0.0004009,14]
[342948944,1732217451976,-150.0,0.00040092,2]
[342948945,1732217451986,-150.0,0.00040096,2]
[342948946,1732217451996,-150.0,0.00040097,2]
[342948947,1732217452005,-1000.0,0.000401,30]
[342948948,1732217452015,-150.0,0.00040104,2]
[342948949,1732217452025,-150.0,0.00040107,2]
[342948950,1732217452034,-150.0,0.00040109,2]
[342948951,1732217452044,-1000.0,0.00040118,2]
[342948952,1732217452055,-150.0,0.0004012,2]
[342948953,1732217452064,-150.0,0.00040121,2]
[342948954,1732217452074,-150.0,0.00040125,2]
[342948955,1732217452084,-150.0,0.00040137,2]
[342948956,1732217452095,-150.0,0.0004014,2]
[342948957,1732217452106,-150.0,0.00040146,2]
[342948958,1732217452115,-150.0,0.00040152,2]
[342948959,1732217452125,-150.0,0.00040155,2]
[342948960,1732217452134,-150.0,0.00040155,2]
[342948961,1732217452146,-150.0,0.0004017,2]
[342948962,1732217452155,-150.0,0.00040171,2]
[342948963,1732217452165,-352.16,0.00040172,11]
[342948964,1732217452175,-150.0,0.00040172,2]
[342948965,1732217452184,-518.76721175,0.00040172,11]
[342948966,1732217452195,-500.0,0.00040172,11]
[342948967,1732217452204,-500.0,0.00040172,11]
[342948968,1732217452214,-500.0,0.00040172,11]
[342948969,1732217452224,-500.0,0.00040172,11]
[342948970,1732217452234,-500.0,0.00040172,11]
[342948971,1732217452243,-685.18,0.00040172,11]
[342948972,1732217452252,-500.0,0.00040172,11]
[342948973,1732217452262,-500.0,0.00040172,11]
[342948974,1732217452271,-500.0,0.00040172,11]
[342948975,1732217452281,-3088.05,0.00040172,11]
[342948976,1732217452290,-620.25,0.00040172,11]
[342948977,1732217452299,-500.0,0.00040172,11]
[342948978,1732217452309,-500.0,0.00040172,11]
[342948979,1732217452318,-2000.0,0.00040172,120]
[342948980,1732217452328,-1081.59,0.00040172,11]
[342948981,1732217452337,-500.0,0.00040172,11]
[342948982,1732217452347,-500.0,0.00040172,11]
[342948983,1732217452357,-500.0,0.00040172,11]
[342948984,1732217452367,-500.0,0.00040172,11]
[342948985,1732217452376,-500.0,0.00040172,11]
[342948986,1732217452388,-500.0,0.00040172,11]
[342948987,1732217452397,-500.0,0.00040172,11]
[342948988,1732217452407,-548.38,0.00040172,11]
[342948989,1732217452417,-5924.49,0.00040172,2]
[342948990,1732217452427,-741.81,0.00040172,11]
[342948991,1732217452437,-608.57,0.00040172,11]
[342948992,1732217452446,-1091.24,0.00040172,11]
[342948993,1732217452456,-81767.6963,0.00040173,2]
[342948994,1732217452465,-150.0,0.00040175,2]
[342948995,1732217452475,-150.0,0.00040179,2]
[342948996,1732217452484,-150.0,0.00040179,2]
[342948997,1732217452494,-150.0,0.0004018,2]
[342948998,1732217452503,-150.0,0.0004018,2]
[342948999,1732217452512,-150.0,0.00040182,2]
[342949000,1732217452521,-150.0,0.00040184,2]
[342949001,1732217452530,-150.0,0.00040193,2]
[342949002,1732217452539,-150.0,0.00040196,2]
[342949003,1732217452548,-150.0,0.000402,28]
[342949004,1732217452557,-150.0,0.000402,2]
[342949005,1732217452566,-1000.0,0.000402,30]
[342949006,1732217452575,-229.0,0.000402,30]
[342949007,1732217452585,-390.811008,0.00040202,14]
[342949008,1732217452594,-390.811008,0.00040202,14]
[342949009,1732217452603,-465.0803,0.00040202,14]
[342949010,1732217452612,-465.0803,0.00040202,14]
[342949011,1732217452623,-919.83258,0.00040202,14]
[342949012,1732217452632,-919.83258,0.00040202,14]
[342949013,1732217452644,-205.058868,0.00040202,14]
[342949014,1732217452653,-205.058868,0.00040202,14]
[342949015,1732217452662,-553.32888,0.00040202,14]
[342949016,1732217452672,-192.18045,0.00040202,14]
[342949017,1732217452681,-192.18045,0.00040202,14]
[342949018,1732217452690,-150.0,0.00040204,2]
[342949019,1732217452699,-150.0,0.00040209,2]
[342949020,1732217452708,-150.0,0.00040212,2]